{"text_format":"1","workbook":"xlsx","n_sheets":4,"sheets":["Annex XVI","Factura","IRPF","Dades"],"not_rendered":{"charts":0,"images":1,"macros":1,"external_links":0,"defined_names":21,"comments":1,"pivot_tables":0},"unopened":[],"bounds":{"document_bytes":16777216,"sheet_cells":100000,"rows_first":2000,"rows_last":500,"rows_between":2000,"halvings":0,"cell_chars":16384,"cell_head_chars":4096},"cells_cut":0,"cells_raw":0,"read":"whole","date_system":"1900"}

{"sheet":"Annex XVI","index":0,"n_rows":49,"n_cols":27,"rows_kept":49,"cut":false,"hidden":false,"merged":[[45,19,45,20],[36,20,39,27],[39,3,39,9],[40,3,40,9],[28,4,28,5],[29,4,29,5],[30,4,30,5],[31,4,31,5],[20,0,34,0],[21,4,23,5],[24,4,24,5],[25,4,25,5],[26,4,26,5],[27,4,27,5],[28,18,28,19],[29,18,29,19],[30,18,30,19],[28,7,28,16],[29,7,29,16],[30,7,30,16],[27,18,27,19],[8,24,8,26],[10,24,10,26],[9,24,9,26],[46,24,46,25],[33,2,33,6],[21,21,21,26],[22,21,22,24],[22,20,23,20],[22,25,22,26],[31,7,31,16],[37,15,37,16],[25,7,25,16],[26,7,26,16],[45,24,45,25],[40,15,40,16],[23,18,23,19],[46,19,46,20],[45,21,45,22],[46,21,46,22],[31,18,31,19],[33,18,33,19],[24,18,24,19],[25,18,25,19],[26,18,26,19],[9,2,9,7],[9,9,9,16],[9,19,9,22],[17,2,17,7],[13,2,13,7],[17,19,17,26],[15,2,15,7],[15,9,15,16],[17,9,17,16],[15,19,15,26],[11,9,11,16],[13,9,13,16],[13,19,13,22],[11,2,11,7],[8,0,18,0],[48,0,48,14],[21,2,23,2],[21,6,23,6],[21,7,21,20],[22,7,23,16],[22,17,22,19],[21,3,23,3],[33,9,33,15],[42,20,42,23],[27,7,27,16],[24,7,24,16],[45,0,45,14],[37,1,41,1],[36,0,43,0],[38,15,38,16],[39,15,39,16],[41,15,41,16],[36,15,36,16],[37,3,37,9],[41,3,41,9],[42,3,42,10],[43,20,43,26],[38,3,38,9],[48,21,48,22],[46,0,47,17],[6,25,6,26],[5,25,5,26],[3,22,3,26],[3,5,3,20],[5,15,5,20],[6,15,6,20],[0,21,1,27],[1,4,1,20],[6,0,7,3],[5,5,5,14],[6,5,6,14],[6,22,6,23],[5,22,5,23],[2,5,2,20],[2,22,2,26],[4,5,4,14],[4,15,4,20],[4,22,4,23],[4,25,4,26],[11,24,11,26],[13,24,13,26],[11,19,11,22]]}
[null,null,null,null,null,null,null,null,null,null,null,null,null,null,null,null,null,null,null,null,null,"INDEMNITZACIONS PER LA INTERVENCIÓ EN ACTIVITATS DE FORMACIÓ DEL PROFESSORAT"]
[null,null,null,null,"Servei de xxxxx"]
[null,null,null,null,null,"Títol de l'activitat",null,null,null,null,null,null,null,null,null,null,null,null,null,null,null,null,"Modalitat"]
[]
[null,null,null,null,null,"Lloc(s) de celebració",null,null,null,null,null,null,null,null,null,"Dates i hores",null,null,null,null,null,null,"Esdeveniment",null,null,"Activitat"]
[]
[]
[]
["Dades personals",null,"Llinatges",null,null,null,null,null,null,"Nom",null,null,null,null,null,null,null,null,null,"NIF",null,null,null,null,"Personal CAIB"]
[null,null,null,null,null,null,null,null,null,null,null,null,null,null,null,null,null,null,null,null,null,null,null,null,"Si"]
[null,null,"Domicili particular",null,null,null,null,null,null,"Codi postal i localitat",null,null,null,null,null,null,null,null,null,"Província",null,null,null,null,"Telèfon"]
[]
[null,null,"Centre de treball",null,null,null,null,null,null,"Localitat",null,null,null,null,null,null,null,null,null,"Província",null,null,null,null,"Telèfon"]
[]
[null,null,"Banc o caixa",null,null,null,null,null,null,"Sucursal o agència",null,null,null,null,null,null,null,null,null,"Carrer o plaça de l'agència"]
[]
[null,null,"Localitat de l'agència",null,null,null,null,null,null,"Província",null,null,null,null,null,null,null,null,null,"Número de cartilla o compte corrent"]
[]
[]
[]
["Declaració de desplaçaments"]
[null,null,"Data de sortida","Hora de sortida","Data de tornada",null,"Hora de tornada","Despeses de locomoció",null,null,null,null,null,null,null,null,null,null,null,null,null,"Despeses d'estada"]
[null,null,null,null,null,null,null,"Itinerari",null,null,null,null,null,null,null,null,null,"Quilòmetres",null,null,"Tíquets i bitllets","Dietes",null,null,null,"Allotjaments"]
[null,null,null,null,null,null,null,null,null,null,null,null,null,null,null,null,null,"Num.","Import",null,null,"I","F","S","M","Núm","Import"]
[null,null,null,null,null,null,null,null,null,null,null,null,null,null,null,null,null,null,{"$f":"IF(R25=\"\",\"\",R25*IRPF!B$5)","v":""}]
[null,null,null,null,null,null,null,null,null,null,null,null,null,null,null,null,null,null,{"$f":"IF(R26=\"\",\"\",R26*IRPF!B$5)","v":""}]
[null,null,null,null,null,null,null,null,null,null,null,null,null,null,null,null,null,null,{"$f":"IF(R27=\"\",\"\",R27*IRPF!B$5)","v":""}]
[null,null,null,null,null,null,null,null,null,null,null,null,null,null,null,null,null,null,{"$f":"IF(R28=\"\",\"\",R28*IRPF!B$5)","v":""}]
[null,null,null,null,null,null,null,null,null,null,null,null,null,null,null,null,null,null,{"$f":"IF(R29=\"\",\"\",R29*IRPF!B$5)","v":""}]
[null,null,null,null,null,null,null,null,null,null,null,null,null,null,null,null,null,null,{"$f":"IF(R30=\"\",\"\",R30*IRPF!B$5)","v":""}]
[null,null,null,null,null,null,null,null,null,null,null,null,null,null,null,null,null,null,{"$f":"IF(R31=\"\",\"\",R31*IRPF!B$5)","v":""}]
[null,null,null,null,null,null,null,null,null,null,null,null,null,null,null,null,null,null,{"$f":"IF(R32=\"\",\"\",R32*IRPF!B$5)","v":""}]
[null,null,null,null,null,null,null,null,null,null,null,null,null,null,null,null,null,null,null,null,null,{"$f":"SUM(V25:V32)","v":0},{"$f":"SUM(W25:W32)","v":0},{"$f":"SUM(X25:X32)","v":0},{"$f":"SUM(Y25:Y32)","v":0}]
[null,null,"Base imposable subjecta a IRPF",null,null,null,null,{"$f":"ROUND(IRPF!C21,2)","v":0},null,"Base no subjecta a IRPF",null,null,null,null,null,null,{"$f":"ROUND(S34+U34+V34+W34+X34+Y34+AA34-H34,2)","v":0},{"$f":"SUM(R25:R32)","v":0},{"$f":"SUM(S25:S32)","v":0},null,{"$f":"SUM(U25:U32)","v":0},{"$f":"V33*IRPF!B$8","v":0},{"$f":"W33*IRPF!B$9","v":0},{"$f":"X33*IRPF!B$10","v":0},{"$f":"Y33*IRPF!B$11","v":0},{"$f":"SUM(Z25:Z32)","v":0},{"$f":"SUM(AA25:AA32)","v":0}]
[]
[]
["Despeses ensenyament",null,null,null,null,null,null,null,null,null,null,null,null,null,null,"Retencions IRPF",null,{"$f":"CONCATENATE(IRPF!B2,\"%\")","v":"15%"},null,null,"Així mateix declara no incórrer en les incompatibilitats a les que fa referència l'article 7 de l'Ordre del conseller d'Educació i Cultura de 20 de maig de 2011 de regulació de les indemnitzacions per la intervenció en activitats de formació permanent del professorat no universitari."]
[null,null,"Hores / Unitats","Concepte",null,null,null,null,null,null,"Mòdul assignat","Total",null,null,null,"Concepte",null,"Total"]
[null,null,null,null,null,null,null,null,null,null,null,{"$f":"IF(C39=0,K39,C39*K39)","v":0},null,null,null,"Indem. intervenció",null,{"$f":"L43*IRPF!B$2/100","v":0}]
[null,null,null,null,null,null,null,null,null,null,null,{"$f":"IF(C40=0,K40,C40*K40)","v":0},null,null,null,"Indem. raó del servei",null,{"$f":"IRPF!D$21","v":0}]
[null,null,null,null,null,null,null,null,null,null,null,0,null,null,null,"Total IRPF",null,{"$f":"SUM(R39:R40)","v":0}]
[null,null,null,null,null,null,null,null,null,null,null,0]
[null,null,null,"Base imposable subjecta a IRPF",null,null,null,null,null,null,null,{"$f":"SUM(L39:L42)","v":0}]
[null,null,null,null,null,null,null,null,null,null,null,null,null,null,null,null,null,null,null,null,"La persona interessada"]
[]
["xxxxxx, cap del Servei de xxxxxx",null,null,null,null,null,null,null,null,null,null,null,null,null,null,null,null,null,null,"Total brut:",null,{"$f":"S34+U34+IRPF!B33+AA34+L43","v":0},null,null,"Amb IRPF:",null,{"$f":"L43+H34","v":0}]
["certifica que el participant indicat ha assistit a l'activitat esmentada i ha realitzat els  desplaçaments i treballs reflectits en el present document.",null,null,null,null,null,null,null,null,null,null,null,null,null,null,null,null,null,null,"Total liquid:",null,{"$f":"V46-R41","v":0},null,null,"Sense IRPF:",null,{"$f":"Q34","v":0}]
[]
["Palma, 1 de gener de 2024"]

{"sheet":"Factura","index":1,"n_rows":59,"n_cols":24,"rows_kept":59,"cut":false,"hidden":false,"merged":[[58,1,58,7],[58,8,58,25],[52,12,52,21],[52,22,52,25],[4,12,4,15],[49,12,49,21],[49,22,49,25],[48,12,48,21],[48,22,48,25],[51,12,51,21],[51,22,51,25],[43,22,43,25],[45,22,45,25],[46,22,46,25],[45,12,45,21],[46,12,46,21],[3,13,3,25],[4,16,4,17],[10,2,10,22],[34,23,34,25],[34,1,34,22],[27,1,27,22],[17,7,17,25],[20,7,20,25],[18,1,18,6],[18,7,18,25],[19,1,19,6],[19,7,19,25],[20,1,20,6],[15,1,15,6],[16,1,16,6],[16,7,16,25],[24,23,24,25],[24,1,24,22],[25,23,25,25],[26,23,26,25],[27,23,27,25],[25,1,25,22],[26,1,26,22],[23,1,23,22],[29,1,29,22],[31,1,31,22],[32,1,32,22],[33,1,33,22],[35,1,36,25],[28,23,28,25],[30,23,30,25],[40,12,40,21],[39,12,39,21],[40,22,40,25],[39,22,39,25],[15,7,15,25],[22,1,22,25],[32,23,32,25],[17,1,17,6],[0,12,0,25],[1,12,1,25],[2,12,2,25],[13,1,13,25],[7,1,7,20],[8,1,8,20],[9,1,9,20],[11,1,11,2],[11,3,11,20],[6,1,6,22],[28,1,28,22],[30,1,30,22],[56,1,56,25],[54,1,54,25],[38,12,38,21],[47,12,47,21],[50,12,50,21],[38,22,38,25],[47,22,47,25],[50,22,50,25],[41,12,41,21],[44,12,44,21],[44,22,44,25],[42,12,42,21],[42,22,42,25],[43,12,43,21],[41,22,41,25]]}
[null,null,null,null,null,null,null,null,null,null,null,null,{"$f":"IF(CONCATENATE(nom,\" \",llinatges)=\" \",\"Nom i llinatges\",CONCATENATE(nom,\" \",llinatges))","v":"Nom i llinatges"}]
[null,null,null,null,null,null,null,null,null,null,null,null,{"$f":"IF(domicili=0,\"Domicili\",domicili)","v":"Domicili"}]
[null,null,null,null,null,null,null,null,null,null,null,null,{"$f":"IF(localitat=0,\"Localitat\",localitat)","v":"Localitat"}]
[null,null,null,null,null,null,null,null,null,null,null,null,"NIF: ",{"$f":"IF(NIF=0,\"\",NIF)","v":""}]
[null,null,null,null,null,null,null,null,null,null,null,null,"Personal CAIB:",null,null,null,{"$f":"'Annex XVI'!Y10","v":"Si"}]
[]
[null,"Conselleria d'Educació i Universitats"]
[null,"Servei de xxxxx"]
[null,"C/ Carrer del Ter, 16"]
[null,"07009 Palma"]
[null,"NIF:","S0711001H"]
[]
[]
[null,"MINUTA NÚM. X/2024"]
[]
[null,"Modalitat:",null,null,null,null,null,{"$f":"IF(modalitat=0,\"\",modalitat)","v":""}]
[null,"Codi activitat:",null,null,null,null,null,{"$f":"IF(activitat=0,\"\",activitat)","v":""}]
[null,"Codi esdeveniment:",null,null,null,null,null,{"$f":"IF(esdeveniment=0,\"\",esdeveniment)","v":""}]
[null,"Títol de l'activitat:",null,null,null,null,null,{"$f":"IF(titol=0,\"\",titol)","v":""}]
[null,"Lloc de celebració:",null,null,null,null,null,{"$f":"IF(lloc=0,\"\",lloc)","v":""}]
[null,"Dates i hores: ",null,null,null,null,null,{"$f":"IF(dates=0,\"\",dates)","v":""}]
[]
[null,"CONCEPTES:"]
[null,"Ensenyament"]
[null,{"$f":"IF('Annex XVI'!D39=0,\" \",IF('Annex XVI'!C39=0,CONCATENATE(\"•  \",'Annex XVI'!D39),CONCATENATE(\"• \",'Annex XVI'!C39,\" \",LOWER('Annex XVI'!D39),\". Mòdul \",'Annex XVI'!K39,\" €\")))","v":" "},null,null,null,null,null,null,null,null,null,null,null,null,null,null,null,null,null,null,null,null,null,{"$f":"IF('Annex XVI'!L39=0,\" \",'Annex XVI'!L39)","v":" "}]
[null,{"$f":"IF('Annex XVI'!D40=0,\" \",IF('Annex XVI'!C40=0,CONCATENATE(\"•  \",'Annex XVI'!D40),CONCATENATE(\"• \",'Annex XVI'!C40,\" \",LOWER('Annex XVI'!D40),\". Mòdul \",'Annex XVI'!K40,\" €\")))","v":" "},null,null,null,null,null,null,null,null,null,null,null,null,null,null,null,null,null,null,null,null,null,{"$f":"IF('Annex XVI'!L40=0,\" \",'Annex XVI'!L40)","v":" "}]
[null,{"$f":"IF('Annex XVI'!D41=0,\" \",IF('Annex XVI'!C41=0,CONCATENATE(\"•  \",'Annex XVI'!D41),CONCATENATE(\"• \",'Annex XVI'!C41,\" \",LOWER('Annex XVI'!D41),\". Mòdul \",'Annex XVI'!K41,\" €\")))","v":" "},null,null,null,null,null,null,null,null,null,null,null,null,null,null,null,null,null,null,null,null,null,{"$f":"IF('Annex XVI'!L41=0,\" \",'Annex XVI'!L41)","v":" "}]
[null,{"$f":"IF('Annex XVI'!D42=0,\" \",IF('Annex XVI'!C42=0,CONCATENATE(\"•  \",'Annex XVI'!D42),CONCATENATE(\"• \",'Annex XVI'!C42,\" \",LOWER('Annex XVI'!D42),\". Mòdul \",'Annex XVI'!K42,\" €\")))","v":" "},null,null,null,null,null,null,null,null,null,null,null,null,null,null,null,null,null,null,null,null,null,{"$f":"IF('Annex XVI'!L42=0,\" \",'Annex XVI'!L42)","v":" "}]
[]
[]
[]
[]
[]
[]
[]
[null,"Honoraris d'acord amb els mòduls econòmics fixats a l'Ordre del conseller d'Educació i Cultura de 20-05-2011 (BOIB de dia 07-06-2011)"]
[]
[]
[null,null,null,null,null,null,null,null,null,null,null,null,"Import íntegre (brut)",null,null,null,null,null,null,null,null,null,{"$f":"'Annex XVI'!V46","v":0}]
[null,null,null,null,null,null,null,null,null,null,null,null,"• Ensenyament",null,null,null,null,null,null,null,null,null,{"$f":"'Annex XVI'!L43","v":0}]
[null,null,null,null,null,null,null,null,null,null,null,null,"• Desplaçaments",null,null,null,null,null,null,null,null,null,{"$f":"'Annex XVI'!H34+'Annex XVI'!Q34","v":0}]
[null,null,null,null,null,null,null,null,null,null,null,null,"Subjecte a retenció IRPF",null,null,null,null,null,null,null,null,null,{"$f":"'Annex XVI'!AA46","v":0}]
[null,null,null,null,null,null,null,null,null,null,null,null,"• Ensenyament",null,null,null,null,null,null,null,null,null,{"$f":"'Annex XVI'!L43","v":0}]
[null,null,null,null,null,null,null,null,null,null,null,null,"• Desplaçaments",null,null,null,null,null,null,null,null,null,{"$f":"'Annex XVI'!H34","v":0}]
[null,null,null,null,null,null,null,null,null,null,null,null,"No subjecte a retenció IRPF",null,null,null,null,null,null,null,null,null,{"$f":"'Annex XVI'!AA47","v":0}]
[null,null,null,null,null,null,null,null,null,null,null,null,"• Ensenyament",null,null,null,null,null,null,null,null,null,0]
[null,null,null,null,null,null,null,null,null,null,null,null,"• Desplaçaments",null,null,null,null,null,null,null,null,null,{"$f":"'Annex XVI'!Q34","v":0}]
[null,null,null,null,null,null,null,null,null,null,null,null,"Retenció IRPF (15%)",null,null,null,null,null,null,null,null,null,{"$f":"'Annex XVI'!$R$41","v":0}]
[null,null,null,null,null,null,null,null,null,null,null,null,"• Ensenyament",null,null,null,null,null,null,null,null,null,{"$f":"'Annex XVI'!R39","v":0}]
[null,null,null,null,null,null,null,null,null,null,null,null,"• Desplaçaments",null,null,null,null,null,null,null,null,null,{"$f":"'Annex XVI'!R40","v":0}]
[null,null,null,null,null,null,null,null,null,null,null,null,"Total a percebre (líquid)",null,null,null,null,null,null,null,null,null,{"$f":"'Annex XVI'!V47","v":0}]
[null,null,null,null,null,null,null,null,null,null,null,null,"• Ensenyament",null,null,null,null,null,null,null,null,null,{"$f":"W40-W49","v":0}]
[null,null,null,null,null,null,null,null,null,null,null,null,"• Desplaçaments",null,null,null,null,null,null,null,null,null,{"$f":"W41-W50","v":0}]
[]
[null,"(Exempt d'IVA d'acord amb l'art. 20.9 de la Llei 37/1992 de l'IVA)"]
[]
[null,{"$f":"'Annex XVI'!$A$49","v":"Palma, 1 de gener de 2024"}]
[]
[null,{"$f":"IF('Annex XVI'!$T$18=0,\" \",\"A ingressar en el compte:\")","v":" "},null,null,null,null,null,null,{"$f":"IF('Annex XVI'!$T$18=0,\" \",'Annex XVI'!$T$18)","v":" "}]

{"sheet":"IRPF","index":2,"n_rows":33,"n_cols":9,"rows_kept":33,"cut":false,"hidden":true,"merged":[]}
[]
["Retencions IRPF",15,null,null,null,null,null,null,"Hora/es de docència en activitats de formació permanent presencial"]
[null,null,null,null,null,null,null,null,"Hora/es de docència en activitats de formació permanent a distància"]
[null,null,"Asignacions actuals",null,"No té IRPF","Té IRPF",null,null,"Hora/es de docència en activitats per a l'aprenentatge d'idiomes"]
["Per kilometratge automobil",0.26238400000000001,null,null,{"$f":"IF(ESCAIB=\"Si\",0.26,0)","v":0.26},{"$f":"IF(B5-E5>0,B5-E5,0)","v":2.3839999999999972E-3},null,null,"Conferència"]
[null,null,null,null,null,null,null,null,"Ponència de professional de reconegut prestigi"]
["Dietes a l'estat espanyol",null,null,null,null,null,null,null,"Participació en taules rodones"]
["Dins l'Illa   (I)",16.37,null,26.67,{"$f":"IF(ESCAIB=\"Si\",26.67,0)","v":26.67},{"$f":"IF(B8-E8<=0,0,B8-E8)","v":0},null,null,"Elaboració de material de formació per activitats presencials"]
["Fora illa, retorn el mateix dia",78.23,null,null,{"$f":"IF(ESCAIB=\"Si\",26.67,0)","v":26.67},{"$f":"IF(B9-E9<=0,0,B9-E9)","v":51.56},null,null,"Traducció de materials didàctics formatius"]
["Fora illa amb pernoctació",94.58,null,null,{"$f":"IF(ESCAIB=\"Si\",53.34,0)","v":53.34},{"$f":"IF(B10-E10<=0,0,B10-E10)","v":41.239999999999995},null,null,"Organització, coordinació i direcció activitats formació fins a 40 h"]
["mitja S, sortida després 15 h. i / o retorn abans 15h.",47.29,null,null,{"$f":"IF(ESCAIB=\"Si\",53.34,0)","v":53.34},{"$f":"IF(B11-E11<=0,0,B11-E11)","v":0},null,null,"Organització, coordinació i direcció activitats formació fins a 20 h"]
[null,null,null,null,null,null,null,null,"Organització, coordinació i direcció activitats formació de més de 40 h"]
[null,null,null,null,null,null,null,null,"Elaboració de materials activitat formació a distància d'entre 10 i 19 h"]
["Càlculs IRPF ",null,null,null,null,null,null,null,"Elaboració de materials activitat formació a distància d'entre 20 i 29 h"]
[null,null,"Base imponible","IRPF",null,null,null,null,"Elaboració de materials activitat formació a distància d'entre 30 i 39 h"]
["Per kilometratge automobil",{"$f":"IF(E5<B5,ROUND((B5-E5)*'Annex XVI'!R34,2),0)*IRPF!B$2/100","v":0},{"$f":"ROUND(F5*'Annex XVI'!R34,2)","v":0},{"$f":"C16*(15/100)","v":0},null,null,null,null,"Elaboració de materials activitat formació a distància a partir de 40 h"]
["Dins l'Illa   (I)",{"$f":"IF(E8<B8,ROUND((B8-E8)*'Annex XVI'!V33,2)*IRPF!B$2/100,0)","v":0},{"$f":"ROUND(F8*'Annex XVI'!V33,2)","v":0},{"$f":"C17*(15/100)","v":0},null,null,null,null,"Actualització de materials activitat formació a distància d'entre 10 i 19 h"]
["Fora illa, retorn el mateix dia",{"$f":"IF(E9<B9,ROUND((B9-E9)*'Annex XVI'!W33,2)*IRPF!B$2/100,0)","v":0},{"$f":"ROUND(F9*'Annex XVI'!W33,2)","v":0},0,null,null,null,null,"Actualització de materials activitat formació a distància d'entre 20 i 29 h"]
["Fora illa amb pernoctació",{"$f":"IF(E10<B10,ROUND((B10-E10)*'Annex XVI'!X33,2)*IRPF!B$2/100,0)","v":0},{"$f":"ROUND(F10*'Annex XVI'!X33,2)","v":0},0,null,null,null,null,"Actualització de materials activitat formació a distància d'entre 30 i 39 h"]
["mitja S, sortida després 15 h. i / o retorn abans 15h.",{"$f":"IF(E11<B11,ROUND((B11-E11)*'Annex XVI'!Y33,2)*IRPF!B$2/100,0)","v":0},{"$f":"ROUND(F11*'Annex XVI'!Y33,2)","v":0},0,null,null,null,null,"Actualització de materials activitat formació a distància a partir de 40 h"]
["Total IRPF",{"$f":"ROUND(SUM(B16:B20),2)","v":0},{"$f":"ROUND(SUM(C16:C20),2)","v":0},{"$f":"ROUND(SUM(D16:D20),2)","v":0}]
[]
[]
[null,7.6845119999999998]
[]
[null,{"$f":"B24-B18","v":7.6845119999999998}]
[]
[]
[]
[]
[]
[]
["Total dietes",{"$f":"B8*'Annex XVI'!V33+B9*'Annex XVI'!W33+B10*'Annex XVI'!X33+B11*'Annex XVI'!Y33","v":0}]

{"sheet":"Dades","index":3,"n_rows":93,"n_cols":2,"rows_kept":93,"cut":false,"hidden":true,"merged":[]}
[]
[]
["Modalitats"]
["Activitat puntual de formació"]
["Formació de centre"]
["Formació en el centre"]
["Formació especialitzada"]
["Formació intercentres"]
["Formació per àmbits"]
["Programa d'experiència formativa"]
[]
[]
["CEP"]
["Servei de Normalització Lingüística i Formació"]
["CEP de Palma"]
["CEP d'Inca"]
["CEP de Manacor"]
["CEP de Menorca"]
["CEP d'Eivissa"]
["CEP de Formentera"]
["CEP de Calvià"]
["CEP IBSTEAM"]
["CFIRDE-IB"]
["Equip DINAMICAT"]
[]
["Directors"]
["Carme Jaume Bosch, cap del Servei de Normalització Lingüística i Formació","SFP"]
["José A. Vega Cuesta, director del CEP de Palma","Palma"]
["Francisca Pascual Socias, directora del CEP d'Inca","Inca"]
["Margalida Barceló i Taberner, directora del CEP de Manacor","Manacor"]
["Caterina Antonio Florit, directora del CEP de Menorca","Menorca"]
["José Ignacio Monge Ganuzas, director del CEP d'Eivissa","Eivissa"]
["Rosa Martí Julià, directora del CEP de Formentera","Formentera"]
["Gabriela Spano Figueroa, directora del CEP de Calvià","Calvià"]
["Yolanda Martínez Laserna, directora del CEP IBSTEAM","IBSTEAM"]
["Manel Perelló Beau","CFIRDE-IB"]
["Carme Jaume Bosch, gestora econòmica de l'Equip DINAMICAT","Dinamicat"]
[]
["Adreces1"]
["C/ Carrer del Ter, 16","SFP"]
["C/ Gregorio Marañón, s/n","Palma"]
["C/ Mestre Antoni Torrandell, 59","Inca"]
["Camí de Bendrís s/n","Manacor"]
["C/Mallorca, 67","Menorca"]
["Via Púnica, 23, baixos dreta","Eivissa"]
["Avinguda de Porto-salè 87","Formentera"]
["Passeig d’Illetes, 4, local 15-16","Calvià"]
["C/ Gregorio Marañón, s/n","IBSTEAM"]
["C/ Gregorio Marañón, s/n","CFIRDE-IB"]
["C/ Carrer del Ter, 16","Dinamicat"]
[]
["Adreces2"]
["07009 Palma","SFP"]
["07007 Palma","Palma"]
["07300 Inca","Inca"]
["07500 Manacor","Manacor"]
["07760 Ciutadella","Menorca"]
["07800 Eivissa","Eivissa"]
["07860 Sant Francesc Xavier","Formentera"]
["07181 Ses Illetes","Calvià"]
["07007 Palma","Palma"]
["07007 Palma","Palma"]
["07009 Palma","Dinamicat"]
[]
["NIF"]
["S0711001H","SFP"]
["S0718181A","Palma"]
["S0718177I","Inca"]
["S0718179E","Manacor"]
["S0718002I","Menorca"]
["S0718175C","Eivissa"]
["S0700092J","Formentera"]
["Q0700727A","Calvià"]
["S0700134J","IBSTEAM"]
["S0700137C","CFIRDE-IB"]
["Q0700440A","Dinamicat"]
[]
["Signatura"]
["Palma, 1 de setembre de 2021","SFP"]
["Palma, 1 de setembre de 2021","Palma"]
["Inca,  1 de setembre de 2021","Inca"]
["Manacor,  1 de setembre de 2021","Manacor"]
["Ciutadella,  1 de setembre de 2021","Menorca"]
["Eivissa,  1 de setembre de 2021","Eivissa"]
["Sant Francesc Xavier,  1 de setembre de 2021","Formentera"]
["Ses Illetes,  1 de setembre de 2021","Calvià"]
["Palma, 1 de setembre de 2021","IBSTEAM"]
["Palma, 1 de setembre de 2021","CFIRDE-IB"]
["Palma,  1 de setembre de 2021","Dinamicat"]
[]
["Personal CAIB"]
["Si"]
["No"]